Cogmind - Beta 15 @@@ ROGUE MODE // 2025.06.06 @ 21:39:14 Player: CL-1C0 Result: Destroyed by S-10 Pest with Light Assault Rifle Performance ------------- Evolutions (0) 0 Regions Visited (2) 400 Robots Destroyed (31) 155 Value Destroyed (749) 749 Prototype IDs (1) 20 Alien Tech Used (0) 0 Bonus (0) 0 TOTAL SCORE: 1324 Bonus ------- None Cogmind --------- Core Integrity 0/250 Matter 255/300 Energy 81/100 System Corruption 2% Temperature Cool (0) Movement Walking (130) Location -10/Subcaves Parts ------- > --- POWER (1) -------- (None) > --- PROPULSION (2) --- Cargo Legs > --- UTILITY (2+2) ---- High-capacity Storage Unit (+) Subdweller Optics Hardened Light Armor Plating > --- WEAPON (2) ------- Subdweller Machine Gun Battle Cannon > --- INVENTORY (20) --- Improved Treads Improved Treads Wheel Subdweller Monowheel Improved Heat Sink Structural Scanner Structural Scanner Hardened Light Armor Plating Hardened Light Armor Plating Medium Laser Subdweller Beam Cannon Grenade Launcher Grenade Launcher Heavy Hammer Heavy Hammer Mining Claw Shrapnel Trap Peak State ------------ > --- POWER ------------ (None) > --- PROPULSION ------- Cargo Legs > --- UTILITY ---------- High-capacity Storage Unit Subdweller Optics Hardened Light Armor Plating > --- WEAPON ----------- Subdweller Machine Gun Battle Cannon > --- INVENTORY -------- Improved Treads Improved Treads Improved Heat Sink Structural Scanner Structural Scanner Hardened Light Armor Plating Hardened Light Armor Plating Medium Laser Subdweller Beam Cannon Grenade Launcher Heavy Hammer Mining Claw [Rating: 27] Favorites ----------- Power Light Ion Engine Engine Light Ion Engine Propulsion Light Treads Treads Light Treads Leg Cargo Legs Wheel Subdweller Monowheel Utility High-capacity Storage Unit Device Subdweller Optics Storage High-capacity Storage Unit Protection Propulsion Shielding Weapon Light Assault Rifle Energy Gun Medium Laser Ballistic Gun Light Assault Rifle Ballistic Cannon Battle Cannon Launcher Grenade Launcher Slashing Weapon Mining Claw Build | -11 -10 -10 ------- Run | Yrd Mat Sub Slots Evolved . | . . . Power . | . . . Propulsion . | . . . Utility . | . . . Weapon . | . . . Parts Attached 29 | 3 7 19 Power 4 | . 1 3 Engine 4 | . 1 3 Core . | . . . Reactor . | . . . Propulsion 9 | 2 . 7 Treads 6 | 2 . 4 Leg 1 | . . 1 Wheel 2 | . . 2 Hover . | . . . Flight . | . . . Utility 8 | . 3 5 Device 1 | . . 1 Storage 1 | . 1 . Processor . | . . . Hackware . | . . . Protection 6 | . 2 4 Artifact . | . . . Weapon 8 | 1 3 4 Energy Gun . | . . . Energy Cannon . | . . . Ballistic Gun 5 | 1 1 3 Ballistic Cannon 1 | . . 1 Launcher 1 | . 1 . Special Weapon . | . . . Impact Weapon . | . . . Slashing Weapon 1 | . 1 . Piercing Weapon . | . . . Special Melee Weapon . | . . . Unidentified Prototypes 1 | . . 1 Parts Lost 11 | . 1 10 Power 3 | . . 3 Propulsion 3 | . . 3 Utility 3 | . 1 2 Weapon 2 | . . 2 Highest Loss Streak 4 | . 1 4 To Critical Strikes . | . . . Average Backups 10 | 5 11 9 Power . | . . . Propulsion 1 | 4 . 2 Utility 3 | . 3 2 Weapon 5 | 1 6 5 Tool/Special . | . . . Unused Backups 20 | . 7 13 Power . | . . . Propulsion 2 | . . 2 Utility 9 | . 5 4 Weapon 9 | . 2 7 Tool/Special . | . . . Average Slot Usage (%) 80 | . 90 73 Engine 4 | . 6 3 Treads 20 | . 28 14 Leg 1 | . . 3 Wheel 2 | . . 4 Device 1 | . . 3 Storage 9 | . 14 5 Protection 11 | . 12 11 Ballistic Gun 19 | . 23 16 Ballistic Cannon 4 | . . 8 Slashing Weapon 1 | . 3 . Peak Build Rating 27 | 6 10 27 Average Rating 12 | 4 7 16 On Entrance 7 | 6 5 10 Naked Turns . | . . . Heaviest Build 54 | 7 46 54 Greatest Support 55 | 40 40 55 Greatest Overweight (x) 2 | . 1 2 Average Overweight (x) . | . . . Largest Inventory Capacity 20 | 8 20 20 Average Capacity 14 | 8 16 11 Most Carried 20 | 6 20 20 Average Carried 10 | 3 11 9 Final Capacity 20 | 8 20 20 Final Carried 20 | . 20 17 Class Distribution -------------------- 86% | Mutant 13% | Subdweller-Mutant Dominant Class ---------------- Mutant | -10/Materials Mutant | -10/Subcaves Resources | -11 -10 -10 ----------- Run | Yrd Mat Sub Matter Collected 878 | 200 241 437 Remotely . | . . . Salvage Created 820 | . 421 399 Parts 69 | . 44 25 Haulers Intercepted . | . . . Recyclers Shooed 2 | . 2 . Parts Field Recycled . | . . . Retrieved Matter . | . . . Parts Self-Destructed 14 | . . 14 Prevented . | . . . Kills | -11 -10 -10 ------- Run | Yrd Mat Sub Combat Hostiles Destroyed 23 | . 12 11 Guns 12 | . 5 7 Cannons 4 | . . 4 AOE 7 | . 7 . Classes Destroyed 9 | . 7 2 Worker 1 | . 1 . Builder 4 | . 4 . Tunneler 1 | . 1 . Recycler 1 | . 1 . Watcher 1 | . 1 . Swarmer 7 | . 6 1 Grunt 7 | . 6 1 Sentry 1 | . . 1 Subdweller 8 | . . 8 Best Kill Streak 5 | . 5 2 Combat Bots Only 3 | . 3 2 Max Kills in Single Turn 3 | . 3 1 Gunslinging . | . . . Exploded 3 | . 3 . Melee . | . . . Uniques/NPCs Destroyed . | . . . Combat | -11 -10 -10 -------- Run | Yrd Mat Sub Hostile Shots Fired 136 | . 45 91 Missed 36 | . 15 21 Hits 100 | . 30 70 Projectile 100 | . 30 70 Critical Strikes 3 | . . 3 Damage Taken 1994 | . 417 1577 Core 251 | . 82 169 Absorbed by Shields . | . . . Redirected to Shielding 95 | . 57 38 Core Remaining (%) 100 | 100 . . Volleys Fired 93 | . 28 65 Largest 2 | . 2 2 Hottest 63 | . 40 63 Shots Fired 170 | . 47 123 Gun 145 | . 38 107 Cannon 16 | . . 16 Launcher 9 | . 9 . Special . | . . . Kinetic 161 | . 38 123 Thermal . | . . . Explosive 9 | . 9 . Electromagnetic . | . . . Robot Hit Streak 29 | . 13 29 Robot Miss Streak 3 | . 2 3 Penetration Max . | . . . Secondary Targets . | . . . Shots Hit Robots 128 | . 32 96 Core Hits 55 | . 29 26 Critical Kills 1 | . 1 . Critical Parts Destroyed . | . . . Critical Strikes 4 | . 1 3 Destroy 2 | . 1 1 Blast 2 | . . 2 Melee Attacks 21 | . 21 . Impact . | . . . Slashing 21 | . 21 . Piercing . | . . . Sneak Attacks 3 | . 3 . Combat Hostiles . | . . . Follow-up Attacks . | . . . Damage Inflicted 2116 | . 1028 1088 Guns 1070 | . 196 874 Cannons 214 | . . 214 Explosions 652 | . 652 . Melee 167 | . 167 . Ramming 13 | . 13 . Kinetic 1284 | . 196 1088 Thermal . | . . . Explosive 652 | . 652 . Electromagnetic . | . . . Impact . | . . . Slashing 167 | . 167 . Piercing . | . . . Highest Corruption 2 | . 2 2 Average Corruption 2 | . 2 2 Corruption Purged . | . . . Corruption Blocked . | . . . Effects 25 | . 1 24 Message Errors 4 | . . 4 Matter Fused 7 | . 1 6 Heat Flow Errors 3 | . . 3 Energy Discharges 3 | . . 3 Data Loss (minor) 5 | . . 5 Misfires 1 | . . 1 Alerts 1 | . . 1 Weapon Failures 1 | . . 1 Overload Shots . | . . . Overflow Damage 85 | . 81 4 Projectiles 4 | . . 4 Explosions 53 | . 53 . Melee 28 | . 28 . Knockbacks 2 | . . 2 Impact . | . . . Kinetic 2 | . . 2 Secondary . | . . . Self-Inflicted Damage 24 | . 24 . Shots 3 | . 3 . Rammed 3 | . 3 . Targets Rammed 3 | . 3 . Kicked . | . . . Crushed . | . . . Highest Temperature 262 | . 19 262 Average Temperature 84 | . 9 126 Received Heat Transfer 1170 | . 204 966 Siege Activations . | . . . Martial Activations . | . . . Shielding Activations . | . . . Robots Disrupted . | . . . Combat Hostiles . | . . . Robots Corrupted . | . . . Combat Hostiles . | . . . Parts Fried . | . . . Impact Corruptions . | . . . Robots Melted . | . . . Combat Hostiles . | . . . Parts Melted . | . . . Heat Transferred . | . . . Parts Sabotaged . | . . . Parts Stolen . | . . . Parts Stripped . | . . . Power Chain Reactions . | . . . Alert | -11 -10 -10 ------- Run | Yrd Mat Sub Maximum Alert Level 1 | . 1 . Low Security (%) 64 | 100 64 . Level 1 35 | . 35 . Level 2 . | . . . Level 3 . | . . . Level 4 . | . . . Level 5 . | . . . High Security . | . . . Max Security . | . . . Peak Influence 257 | . 257 . Initial . | . . . Average 118 | . 119 . Influence Increases 512 | . 437 75 Destroy 0b10 Robot/C 300 | . 240 60 Destroy 0b10 Robot/NC 40 | . 40 . Destroy Leader 52 | . 52 . Successful Hack 5 | . 5 . Destroy Structure 55 | . 55 . Lose Combat Pursuer 60 | . 45 15 Influence Decreases 481 | . 269 212 Entered New Map 81 | . . 81 Time Decay 350 | . 259 91 Lost Part 50 | . 10 40 Squads Dispatched 1 | . 1 . Investigation . | . . . Extermination . | . . . Reinforcement 1 | . 1 . Assault . | . . . Garrison . | . . . Intercept . | . . . Searches Triggered . | . . . Construction Impeded . | . . . Haulers Reinforced . | . . . Active Scanning Responses . | . . . Cargo Convoy Interrupts . | . . . Stealth | -11 -10 -10 --------- Run | Yrd Mat Sub Distress Signals 2 | . 2 . Communications Jammed . | . . . Distress Signals . | . . . Times Spotted 35 | . 22 13 Peak Tracking Total 5 | . 5 2 Tactical Retreats 2 | . 1 1 Traps | -11 -10 -10 ------- Run | Yrd Mat Sub Traps Triggered 1 | . 1 . Indirectly . | . . . Trap Hack Attempts . | . . . Triggered . | . . . Disarmed . | . . . Reprogrammed . | . . . Reused . | . . . Traps Extracted . | . . . Installed . | . . . Triggered . | . . . Most Traps Carried 1 | . . 1 Machines | -11 -10 -10 ---------- Run | Yrd Mat Sub Machines Disabled . | . . . Max in Single Turn . | . . . Machines Repaired . | . . . Machines Dismantled . | . . . Machines Sabotaged . | . . . Overloaded Fab Kills . | . . . Hacking | -11 -10 -10 --------- Run | Yrd Mat Sub Machines Accessed 7 | . 4 3 Terminals 4 | . 4 . Fabricators . | . . . Repair Stations . | . . . Recycling Units . | . . . Scanalyzers . | . . . Garrison Access . | . . . Total Hacks 11 | . 5 6 Successful 8 | . 2 6 Failed 3 | . 3 . Catastrophic 1 | . 1 . Database Lockouts . | . . . Manual 3 | . 3 . Terminals 5 | . 5 . Fabricators . | . . . Repair Stations . | . . . Recycling Units . | . . . Scanalyzers . | . . . Garrison Access . | . . . Terminal Hacks 8 | . 2 6 Record 4 | . . 4 Open Door 1 | . . 1 Zone Layout 2 | . 2 . Release Object 1 | . . 1 Fabricator Hacks . | . . . Repair Station Hacks . | . . . Recycling Unit Hacks . | . . . Scanalyzer . | . . . Garrison Access Hacks . | . . . Unauthorized Hacks . | . . . Terminals . | . . . Fabricators . | . . . Repair Stations . | . . . Recycling Units . | . . . Scanalyzers . | . . . Garrison Access . | . . . Data Cores Recovered . | . . . Used . | . . . Hacking Detections 4 | . 4 . Full Trace Events . | . . . Feedback Events . | . . . Feedback Blocked . | . . . Robot Schematics Acquired . | . . . Robots Built . | . . . Authchips . | . . . Time . | . . . Total Robot Build Rating . | . . . Part Schematics Acquired . | . . . Parts Built . | . . . Authchips . | . . . Time . | . . . Total Part Build Rating . | . . . Parts Repaired . | . . . Time . | . . . Parts Recycled . | . . . Recycled Matter . | . . . Retrieved Matter . | . . . Retrieved Components . | . . . Parts Scanalyzed . | . . . Part Schematics Acquired . | . . . Parts Damaged . | . . . Bothacking | -11 -10 -10 ------------ Run | Yrd Mat Sub Used RIF Installer . | . . . Robots Hacked . | . . . Non-combat . | . . . Combat . | . . . Robot Hacks Applied . | . . . Relay Couplers Released . | . . . Fabnet Peak Effective % . | . . . Robots Rewired . | . . . Allies Hacked . | . . . Hacks Repelled . | . . . Allies | -11 -10 -10 -------- Run | Yrd Mat Sub Total Allies . | . . . Largest Group . | . . . Highest-Rated Group . | . . . Highest-Rated Ally . | . . . Total Orders . | . . . Ally Attacks . | . . . Total Damage . | . . . Kills . | . . . Allies Corrupted . | . . . Allies Melted . | . . . Intel | -11 -10 -10 ------- Run | Yrd Mat Sub Active Infowar (turns) 488 | . . 488 Optics 488 | . . 488 Robot Analysis Total . | . . . Derelict Logs Recovered 1 | . . 1 Drone Launches . | . . . Drone Recoveries . | . . . Exploration | -11 -10 -10 ------------- Run | Yrd Mat Sub Turns Passed 2919 | 9 1348 1562 Spaces Moved 1409 | 1 527 881 Core . | . . . Treads 782 | 1 527 254 Legs 366 | . . 366 Wheels 261 | . . 261 Hover . | . . . Flight . | . . . Fastest Speed 120 | 160 160 120 Average Speed 171 | 160 212 146 Slowest Speed 320 | 160 240 320 Overloaded Moves . | . . . Propulsion Burnouts . | . . . Robots Hopped . | . . . Potential Cave-ins . | . . . Cave-ins Triggered . | . . . Exploration Rate (%) 41 | 2 78 43 Regions Visited 2 Branch Regions 1 Pre-discovered Areas 1 | . . 1 Known Exits Taken . | . . . Unknown Exits Taken 2 | 1 1 . Scrap Searched 1 | . . 1 Spaces Dug 22 | . 22 . Terrain Destroyed 61 | . 61 . Melee 7 | . 7 . Projectile . | . . . AOE 54 | . 54 . Terrain Rammed . | . . . Walls Destroyed . | . . . Machines Disabled . | . . . Actions | -11 -10 -10 --------- Run | Yrd Mat Sub Total 1728 | 14 672 1042 Wait 91 | . 48 43 Move 1407 | . 526 881 Hop . | . . . Pick Up 49 | . 29 20 Fast Attach 9 | . . 9 Attach 17 | 3 3 11 Detach 5 | 4 . 1 Swap 7 | . 7 . Drop 26 | 7 7 12 Fire 93 | . 28 65 Melee 21 | . 21 . Ram . | . . . Kick . | . . . Crush 3 | . 3 . Escape Stasis . | . . . Rewire . | . . . Trap . | . . . Miscellaneous . | . . . Route ------- -11/Scrapyard -10/Materials (discovered 6 exits: [*Mat x3] / [*Min x2] / *Sub) -10/Subcaves (discovered 2 exits: [*Mat x2]) History --------- Turn | Location | Event 10 | -11/Scrapyard | Discovered new exit (range 0) 10 | -11/Scrapyard | Entered Materials 164 | -10/Materials | Discovered new exit (range 15) 311 | -10/Materials | Build established: Mutant 596 | -10/Materials | Discovered new exit (range 4) 897 | -10/Materials | Discovered new exit (range 13) 1132 | -10/Materials | Discovered new exit (range 16) 1317 | -10/Materials | Discovered new exit (range 14) 1319 | -10/Materials | Discovered new exit (range 12) 1358 | -10/Materials | Entered Subcaves 1359 | -10/Subcaves | Approached by a straggling Scientist 1487 | -10/Subcaves | Lost 4 parts (2p2n) 1498 | -10/Subcaves | Visited Clippyterm 1506 | -10/Subcaves | Learned location of Extension (-6) 1506 | -10/Subcaves | Learned Factory stockpile data 1622 | -10/Subcaves | Shifting Twisted Machinery released Battle Cannon 1622 | -10/Subcaves | Shifting Twisted Machinery released Sub. Machine Gun 1640 | -10/Subcaves | Ambushed by Subdweller buried in earth 1648 | -10/Subcaves | Core integrity fell below 50% 1709 | -10/Subcaves | Lost 4 parts (1p1u2w) 1723 | -10/Subcaves | Core integrity fell below 20% 2005 | -10/Subcaves | Learned Materials emergency access door positions 2057 | -10/Subcaves | Shifting Twisted Machinery released Sub. Machine Gun 2096 | -10/Subcaves | Discovered new exit (range 13) 2100 | -10/Subcaves | Build established: Subdweller-Mutant 2137 | -10/Subcaves | Discovered new exit (range 15) 2388 | -10/Subcaves | A Subdweller sparked back to life 2388 | -10/Subcaves | A Subdweller sparked back to life 2416 | -10/Subcaves | Found Prototype Leg 2416 | -10/Subcaves | Identified Cargo Legs 2417 | -10/Subcaves | Attached Cargo Legs, gained temporary slots: Utility x2 2493 | -10/Subcaves | Build established: Mutant 2920 | -10/Subcaves | Destroyed by S-10 Pest with Light Assault Rifle Last Messages --------------- 02669_ Acquired Mining Claw. 02672_ Acquired Imp. Heat Sink. 02674_ Acquired Wheel. 02676_ Acquired Hvy. Hammer. 02679_ Acquired Grenade Launcher. 02698_ Acquired 5 matter. 02746_ System corrupted: Component data lost. 02764_ Subatomizers dissect the Ion Engine. 02787_ System corrupted: Component data lost. 02808_ Subatomizers dissect the Ion Engine. 02810_ Acquired Shrapnel Trap. 02812_ Acquired Sub. Monowheel. 02820_ Subatomizers dissect the Ion Engine. 02829_ 2DIHE4QFG1BX